bitfinex/quotes_ETHUSD_20251019
["timestamp","ask_amount","ask_price","bid_price","bid_amount"]
[1760900311357,24.36191789,4009.0,4008.9,3.146]
[1760900311533,4.27958783,4009.0,4008.9,3.146]
[1760900311733,1.77247389,4009.0,4008.9,3.577]
[1760900312955,1.77247389,4009.0,4008.9,5.64044984]
[1760900313130,0.001,4009.0,4008.9,6.07144984]
[1760900316864,0.001,4009.0,4008.9,6.06924984]
[1760900320864,0.04446819,4009.0,4008.9,6.06924984]
[1760900321050,0.04446819,4009.0,4008.7,2.49657393]
[1760900321051,5.16006687,4009.0,4008.7,0.002]
[1760900321258,2.30171551,4008.9,4008.7,0.002]
[1760900321629,0.4487,4008.8,4008.7,0.002]
[1760900324050,0.04446819,4009.0,4008.7,0.002]
[1760900324262,0.75029542,4008.8,4008.7,0.002]
[1760900324640,0.75029542,4008.8,4008.7,3.156]
[1760900325336,0.75029542,4008.8,4008.7,5.6505743]
[1760900325567,0.39224664,4009.0,4008.7,0.002]
[1760900325729,0.46728827,4008.9,4008.7,0.002]
[1760900325930,0.70745349,4008.9,4008.8,3.155]
[1760900326132,0.4487,4008.9,4008.8,3.155]
[1760900326936,0.4487,4008.9,4008.8,3.154]
[1760900327134,0.39224664,4009.0,4008.8,3.154]
[1760900327450,0.4487,4008.9,4008.7,0.002]
[1760900327953,0.4487,4008.8,4008.7,3.156]
[1760900328154,0.4487,4008.8,4008.7,0.002]
[1760900328746,0.4487,4008.8,4008.7,3.156]
[1760900330140,0.88441801,4009.0,4008.7,3.156]
[1760900330366,0.16346834,4008.9,4008.7,3.156]
[1760900330572,0.61216834,4008.9,4008.7,3.156]
[1760900331947,0.61216834,4008.9,4008.7,0.002]
[1760900332165,0.61216834,4008.9,4008.7,3.156]
[1760900334354,0.61216834,4008.9,4008.7,3.155]
[1760900335652,0.17981518,4008.8,4008.7,3.155]
[1760900335866,0.4487,4008.9,4008.7,0.002]
[1760900336184,0.4487,4008.9,4008.7,3.154]
[1760900336380,0.43571801,4009.0,4008.7,3.154]
[1760900336587,1.18601343,4009.0,4008.7,3.154]
[1760900337364,1.18601343,4009.0,4008.7,0.002]
[1760900337565,0.16347134,4008.9,4008.7,3.154]
[1760900337777,0.16347134,4008.9,4008.7,0.002]
[1760900338178,0.16347134,4008.9,4008.7,3.154]
[1760900338377,1.63471343,4009.0,4008.8,0.4503]
[1760900338378,1.18601343,4009.0,4008.8,0.4503]
[1760900338551,0.43571801,4009.0,4008.8,2.9447564]
[1760900338883,0.43571801,4009.0,4008.9,0.4503]
[1760900339091,0.43571801,4009.0,4008.9,2.94474984]
[1760900340490,0.39224664,4009.0,4008.9,2.94474984]
[1760900341254,0.001,4009.0,4008.9,2.94474984]
[1760900341994,0.001,4009.0,4008.9,6.09674984]
[1760900342180,0.001,4009.0,4008.9,2.94474984]
[1760900342489,0.001,4009.0,4008.9,6.09674984]
[1760900351718,0.001,4009.0,4008.9,2.94474984]
[1760900351929,0.001,4009.0,4008.9,6.11969433]
[1760900352126,0.001,4009.0,4008.9,6.09474984]
[1760900359200,0.001,4009.0,4008.9,6.09674984]
[1760900361125,0.04446368,4009.0,4008.9,6.09674984]
[1760900364204,0.04446368,4009.0,4008.9,6.10334984]
[1760900369739,0.04446368,4009.0,4008.9,5.64644984]
[1760900379995,0.04446368,4009.0,4008.9,6.09664984]
[1760900380174,0.04446368,4009.0,4008.9,5.64644984]
[1760900381953,0.04446368,4009.0,4008.9,7.37444984]
[1760900385167,0.04446368,4009.0,4008.9,5.64644984]
[1760900385879,0.04446368,4009.0,4008.9,5.64144984]
[1760900386081,0.04446368,4009.0,4008.9,2.49644984]
[1760900386249,0.47806368,4009.0,4008.9,5.64144984]
[1760900387178,0.04446368,4009.0,4008.9,5.64144984]
[1760900387893,0.04446368,4009.0,4008.9,9.46144984]
[1760900388602,0.04446368,4009.0,4008.9,6.31644984]
[1760900388755,0.04446368,4009.0,4008.9,9.46144984]
[1760900390471,0.04446368,4009.0,4008.9,9.91164984]
[1760900395766,0.04446368,4009.0,4008.9,9.46144984]
[1760900397900,0.04160188,4009.0,4008.9,9.46144984]
[1760900399702,0.124,4009.2,4009.1,2.4943254]
[1760900401204,0.001,4009.4,4009.3,2.49420098]
[1760900401409,0.4336,4009.3,4009.1,3.82]
[1760900401596,0.5576,4009.2,4009.1,2.4943254]
[1760900401902,0.124,4009.2,4009.1,7.06008907]
[1760900402090,0.124,4009.2,4009.1,6.58494582]
[1760900402520,0.124,4009.2,4009.1,7.03514582]
[1760900404986,0.001,4009.4,4009.3,2.49420098]
[1760900405182,0.001,4009.4,4009.3,2.51914298]
[1760900408721,0.001,4009.4,4009.3,2.49420098]
[1760900409520,0.04446255,4009.4,4009.3,2.49420098]
[1760900412113,0.04446255,4009.4,4009.3,2.51914298]
[1760900412828,0.04446255,4009.4,4009.3,2.49420098]
[1760900415830,4.38538297,4009.4,4009.0,0.002]
[1760900416132,0.45722657,4009.3,4009.0,0.002]
[1760900416304,16.27213642,4009.1,4009.0,0.002]
[1760900416504,4.12139,4009.1,4009.0,0.002]
[1760900416738,4.57529,4009.1,4009.0,0.002]
[1760900417113,4.67531988,4009.1,4009.0,0.002]
[1760900417309,6.1393387,4009.1,4009.0,0.002]
[1760900417613,10.02635912,4009.1,4009.0,0.002]
[1760900417919,33.54337652,4009.1,4009.0,0.002]
[1760900418120,27.54615852,4009.1,4009.0,0.002]
[1760900418811,21.27972452,4009.1,4009.0,0.002]
[1760900419126,21.27814052,4009.1,4009.0,0.002]
[1760900419630,17.88606766,4009.1,4009.0,0.002]
[1760900419802,18.21190631,4009.1,4009.0,0.002]
[1760900420013,31.52600331,4009.1,4009.0,0.002]
[1760900420215,26.49003389,4009.1,4009.0,0.002]
[1760900421210,26.57591089,4009.1,4009.0,0.002]
[1760900421738,25.08453189,4009.1,4009.0,0.002]
[1760900422243,30.88605189,4009.1,4009.0,0.002]
[1760900422624,31.01219004,4009.1,4009.0,0.002]
[1760900423222,31.85432604,4009.1,4009.0,0.002]
[1760900424338,33.27875604,4009.1,4009.0,0.002]
[1760900425527,37.24007304,4009.1,4009.0,0.002]
[1760900426518,37.73848804,4009.1,4009.0,0.002]
[1760900426719,42.40843494,4009.1,4009.0,0.002]
[1760900426942,42.40943494,4009.1,4009.0,0.002]
[1760900427269,42.40943494,4009.1,4008.6,0.002]
[1760900427270,4.85598762,4009.0,4008.6,0.002]
[1760900427545,34.99801207,4008.8,4008.6,0.002]
[1760900427737,35.69301421,4008.8,4008.6,0.002]
[1760900427910,36.14381421,4008.8,4008.6,0.002]
[1760900428114,15.54276413,4008.8,4008.6,0.002]
[1760900428311,15.73204813,4008.8,4008.6,0.002]
[1760900428552,16.88563993,4008.8,4008.6,0.002]
[1760900428715,15.81783793,4008.8,4008.6,0.002]
[1760900428923,16.45143793,4008.8,4008.6,0.002]
[1760900429427,15.81755493,4008.8,4008.6,0.002]
[1760900429648,16.31001893,4008.8,4008.6,0.002]
[1760900430033,13.36470686,4008.8,4008.6,0.002]
[1760900430247,10.87572686,4008.8,4008.6,0.002]
[1760900430445,10.09661292,4008.8,4008.6,0.002]
[1760900431053,12.59112499,4008.8,4008.6,0.002]
[1760900431227,12.94972499,4008.8,4008.6,0.002]
[1760900431724,13.34100793,4008.8,4008.6,0.002]
[1760900434649,12.94972499,4008.8,4008.6,0.002]
[1760900434855,14.56808559,4008.8,4008.6,0.002]
[1760900435377,14.34403259,4008.8,4008.6,0.002]
[1760900436391,13.98543259,4008.8,4008.6,0.002]
[1760900437692,14.37671278,4008.8,4008.6,0.002]
[1760900438462,13.98543259,4008.8,4008.6,0.002]
[1760900439180,14.34403259,4008.8,4008.6,0.002]
[1760900440894,39.31519863,4008.8,4008.6,0.002]
[1760900441293,39.70650833,4008.8,4008.6,0.002]
[1760900441856,47.52840433,4008.8,4008.6,0.002]
[1760900445092,34.8561743,4008.7,4008.6,0.002]
[1760900445400,38.05829038,4008.7,4008.6,0.002]
[1760900445562,38.41689038,4008.7,4008.6,0.002]
[1760900448768,38.46037411,4008.7,4008.6,0.002]
[1760900449193,8.46037411,4008.7,4008.6,0.002]
[1760900449389,38.46037411,4008.7,4008.6,0.002]
[1760900450399,38.85173375,4008.7,4008.6,0.002]
[1760900451090,38.95180868,4008.7,4008.6,0.002]
[1760900451284,8.95180868,4008.7,4008.6,0.002]
[1760900451496,38.95180868,4008.7,4008.6,0.002]
[1760900454422,4.85623653,4008.6,4008.5,1e-08]
[1760900454576,38.04487394,4008.6,4008.5,1e-08]
[1760900454774,38.40347394,4008.6,4008.5,1e-08]
[1760900455204,38.50356139,4008.6,4008.5,1e-08]
[1760900456607,38.54704598,4008.6,4008.5,1e-08]
[1760900456814,38.50356139,4008.6,4008.5,1e-08]
[1760900457608,8.50356139,4008.6,4008.5,1e-08]
[1760900457798,38.50356139,4008.6,4008.5,1e-08]
[1760900459501,38.54704617,4008.6,4008.5,1e-08]
[1760900459701,8.54704617,4008.6,4008.5,1e-08]
[1760900460008,3.12854773,4008.1,4007.0,0.4683]
[1760900460220,45.50844722,4008.1,4007.2,0.4683]
[1760900460518,46.23621071,4008.1,4007.2,0.4683]
[1760900460813,46.74799889,4008.1,4007.2,0.4683]
[1760900461676,46.79936359,4008.1,4007.2,0.4683]
[1760900461878,47.13940259,4008.1,4007.2,0.4683]
[1760900462079,47.13940259,4008.1,4007.6,0.002]
[1760900462779,17.13940259,4008.1,4007.6,0.002]
[1760900462990,47.13940259,4008.1,4007.6,0.002]
[1760900463820,46.26718959,4008.1,4007.6,0.002]
[1760900463978,47.13940259,4008.1,4007.6,0.002]
[1760900465822,46.74799889,4008.1,4007.6,0.002]
[1760900466020,16.74799889,4008.1,4007.6,0.002]
[1760900466314,46.74799889,4008.1,4007.6,0.002]
[1760900469980,35.71781689,4008.1,4007.6,0.002]
[1760900470186,35.71781689,4008.1,4007.6,0.4737]
[1760900471198,35.01183189,4008.1,4007.6,0.4648]
[1760900472086,16.38939889,4008.1,4007.6,0.4648]
[1760900472310,36.70201489,4008.1,4007.6,0.4648]
[1760900473184,44.82553389,4008.1,4007.6,0.4648]
[1760900473385,45.18413389,4008.1,4007.6,0.4648]
[1760900473620,45.18413389,4008.1,4007.6,0.002]
[1760900473988,34.85679674,4007.7,4007.6,0.002]
[1760900474316,45.87585972,4007.7,4007.6,0.002]
[1760900474490,46.23295972,4007.7,4007.6,0.002]
[1760900474816,47.0871916,4007.7,4007.6,0.002]
[1760900475013,46.7300916,4007.7,4007.6,0.002]
[1760900475335,47.0871916,4007.7,4007.6,0.002]
[1760900476017,47.0871916,4007.7,4006.8,0.4628]
[1760900476018,29.76004392,4006.9,4006.8,0.4628]
[1760900476219,15.18235576,4006.9,4006.8,0.4628]
[1760900476421,45.18235576,4006.9,4006.8,0.4628]
[1760900476623,36.38089928,4006.9,4006.8,0.4628]
[1760900476929,36.38089928,4006.9,4005.9,0.2154]
[1760900476930,2.49625561,4006.0,4005.9,0.2154]
[1760900477092,10.42917246,4006.0,4005.9,0.2154]
[1760900477293,10.78835256,4006.0,4005.9,0.2154]
[1760900477608,10.78835256,4006.0,4005.9,0.6782]
[1760900477609,5.62690765,4006.0,4005.9,0.6782]
[1760900477809,4.876,4006.0,4005.9,3.17451793]
[1760900478122,3.148,4006.0,4005.9,3.17451793]
[1760900478695,3.148,4006.0,4005.9,3.17651793]
[1760900478993,3.148,4006.0,4005.9,0.6802]
[1760900479810,3.19150079,4006.0,4005.9,3.17651793]
[1760900480027,3.148,4006.0,4005.9,3.17651793]
[1760900481801,3.148,4006.0,4005.9,0.6802]
[1760900482220,3.148,4006.0,4005.9,3.17651793]
[1760900484731,3.148,4006.0,4005.9,0.6802]
[1760900485434,3.19150027,4006.0,4005.9,3.17651793]
[1760900486728,3.19150027,4006.0,4005.9,0.6802]
[1760900487145,4.91950027,4006.0,4005.9,3.17651793]
[1760900490558,3.19150027,4006.0,4005.9,3.17651793]
[1760900493339,3.19150027,4006.0,4005.9,0.6802]
[1760900493725,3.148,4006.0,4005.9,0.6802]
[1760900493951,3.148,4006.0,4005.9,0.002]
[1760900495053,3.53951648,4006.0,4005.9,0.002]
[1760900495829,3.148,4006.0,4005.9,0.002]
[1760900496521,3.43548827,4006.0,4005.9,0.002]
[1760900496716,12.49997461,4006.0,4005.9,0.002]
[1760900496946,9.98513073,4006.0,4005.9,0.002]
[1760900497129,10.02863389,4006.0,4005.9,0.002]
[1760900497329,9.98513073,4006.0,4005.9,0.002]
[1760900498758,10.37666765,4006.0,4005.9,0.002]
[1760900499930,12.87292326,4006.0,4005.9,0.002]
[1760900501227,14.60092326,4006.0,4005.9,0.002]
[1760900501617,14.64442759,4006.0,4005.9,0.002]
[1760900503324,14.64442759,4006.0,4005.9,0.062]
[1760900503752,15.39536532,4006.0,4005.9,0.062]
[1760900504664,15.12646532,4006.0,4005.9,0.062]
[1760900505068,15.39536532,4006.0,4005.9,0.062]
[1760900505233,12.63020971,4006.0,4005.9,0.062]
[1760900506227,15.12646532,4006.0,4005.9,0.062]
[1760900507357,12.63020971,4006.0,4005.9,0.062]
[1760900507729,9.66403671,4006.0,4005.9,0.062]
[1760900507929,9.65649498,4006.0,4005.9,0.519]
[1760900508155,6.30404206,4006.0,4005.9,0.519]
[1760900508344,9.29057506,4006.0,4005.9,0.062]
[1760900510330,9.11056006,4006.0,4005.9,0.062]
[1760900510632,6.30404206,4006.0,4005.9,0.062]
[1760900510851,6.30404206,4006.0,4005.9,0.519]
[1760900512548,9.28557106,4006.0,4005.9,0.062]
[1760900512758,6.30404206,4006.0,4005.9,0.062]
[1760900512965,9.28557106,4006.0,4005.9,0.062]
[1760900513739,26.08437715,4006.0,4005.9,0.062]
[1760900513960,26.35327715,4006.0,4005.9,0.062]
[1760900514958,26.97446915,4006.0,4005.9,0.062]
[1760900515258,13.92189115,4006.0,4005.9,0.062]
[1760900515838,10.24736815,4006.0,4005.9,0.062]
[1760900516044,16.76960415,4006.0,4005.9,0.062]
[1760900516938,17.04360515,4006.0,4005.9,0.062]
[1760900517966,16.95830415,4006.0,4005.9,0.062]
[1760900518871,16.68940415,4006.0,4005.9,0.062]
[1760900519073,13.78361915,4006.0,4005.9,0.062]
[1760900519272,9.97846815,4006.0,4005.9,0.062]
[1760900521577,12.14557115,4006.0,4005.9,0.062]
[1760900521879,12.21580415,4006.0,4005.9,0.062]
[1760900522176,7.48221254,4006.0,4005.9,0.519]
[1760900522475,7.48221254,4006.0,4005.9,0.062]
[1760900522876,9.97846815,4006.0,4005.9,0.062]
[1760900523079,14.32223315,4006.0,4005.9,0.062]
[1760900523258,12.95655715,4006.0,4005.9,0.062]
[1760900523454,12.93929515,4006.0,4005.9,0.062]
[1760900523660,12.71140215,4006.0,4005.9,0.062]
[1760900523863,10.21514654,4006.0,4005.9,0.062]
[1760900524064,12.23154915,4006.0,4005.9,0.062]
[1760900524581,9.98311654,4006.0,4005.9,0.062]
[1760900525160,12.47937215,4006.0,4005.9,0.062]
[1760900525576,12.86118615,4006.0,4005.9,0.062]
[1760900525877,9.98311654,4006.0,4005.9,0.062]
[1760900526470,7.48221254,4006.0,4005.9,0.062]
[1760900526674,4.91950433,4006.0,4005.9,0.5002]
[1760900529078,4.91950433,4006.0,4005.9,0.062]
[1760900529277,4.91950433,4006.0,4005.9,0.5002]
[1760900530182,3.19150433,4006.0,4005.9,0.5002]
[1760900530883,3.19150433,4006.0,4005.9,0.062]
[1760900534091,4.04841189,4006.0,4005.9,0.062]
[1760900534982,3.77951189,4006.0,4005.9,0.062]
[1760900536423,4.04841189,4006.0,4005.9,0.062]
[1760900536908,3.77951189,4006.0,4005.9,0.062]
[1760900540309,3.19150433,4006.0,4005.9,2.98991793]
[1760900541126,3.19150433,4006.0,4005.9,0.062]
[1760900545365,3.12954864,4006.5,4005.9,0.062]
[1760900545366,0.001,4009.1,4006.0,0.51512929]
[1760900545564,0.124,4007.7,4007.5,2.65082127]
[1760900545864,0.124,4007.7,4007.5,3.38632679]
[1760900546066,0.124,4007.7,4007.5,3.75662679]
[1760900547241,2.089,4007.8,4007.5,3.78158]
[1760900547542,2.212,4008.1,4008.0,2.49500998]
[1760900547747,2.212,4008.1,4008.0,7.49518456]
[1760900548871,0.001,4009.9,4008.0,5.40161667]
[1760900549070,0.125,4009.9,4009.7,7.37486331]
[1760900549436,0.001,4009.9,4009.7,3.81389101]
[1760900549864,0.001,4009.9,4009.7,3.07905216]
[1760900550347,0.001,4009.9,4009.7,7.86916331]
[1760900550563,0.001,4009.9,4009.7,9.59716331]
[1760900550864,0.001,4009.9,4009.7,10.08733549]
[1760900551065,0.001,4009.9,4009.7,13.25933549]
[1760900551273,0.001,4009.9,4009.7,10.08733549]
[1760900551476,0.001,4009.9,4009.7,9.59716331]
[1760900551846,0.001,4009.9,4009.7,4.56075216]
[1760900552060,0.001,4009.9,4009.7,2.83275216]
[1760900552441,0.001,4009.9,4009.7,2.70875216]
[1760900554073,0.01858827,4010.8,4009.7,0.2148]
[1760900554245,0.124,4011.1,4010.5,4.66611115]
[1760900554446,2.365,4011.1,4010.5,4.66611115]
[1760900554650,2.241,4011.1,4011.0,2.49314385]
[1760900557682,0.001,4011.7,4011.6,2.49277096]
[1760900557851,0.001,4011.7,4011.6,2.86307096]
[1760900559558,0.001,4011.7,4011.6,2.88799866]
[1760900559862,0.001,4011.7,4011.6,2.86307096]
[1760900560391,0.001,4011.7,4011.6,7.80399866]
[1760900560558,0.001,4011.7,4011.6,7.77907096]
[1760900561792,0.001,4011.7,4011.6,7.77807096]
[1760900562491,0.001,4011.7,4011.6,4.22077096]
[1760900562702,0.001,4011.7,4011.6,2.59270512]
[1760900562999,0.4749,4011.7,4011.6,2.49277096]
[1760900563392,0.4749,4011.7,4011.4,0.4739]
[1760900563590,0.4739,4011.6,4011.1,2.49306955]
[1760900563779,0.4739,4011.6,4010.5,0.3724]
[1760900563780,0.4739,4011.5,4011.0,2.49512909]
[1760900564003,0.001,4011.7,4011.6,2.49277096]
[1760900564167,0.4749,4011.7,4011.0,0.002]
[1760900564582,0.5989,4011.7,4011.0,0.126]
[1760900564897,0.5989,4011.7,4011.6,2.49277096]
[1760900565959,0.125,4011.7,4011.6,2.49277096]
[1760900568398,0.5989,4011.7,4011.3,2.49290662]
[1760900568693,0.125,4011.7,4011.6,2.49277096]
[1760900569392,0.5989,4011.7,4011.6,2.49277096]
[1760900569696,0.64234018,4011.7,4011.6,2.49277096]
[1760900569883,0.64234018,4011.7,4011.4,2.49289373]
[1760900570088,0.124,4011.4,4011.2,2.49301954]
[1760900570394,0.4739,4011.3,4011.2,2.49296662]
[1760900570566,0.51834018,4011.7,4011.5,2.49280567]
[1760900570767,0.51834018,4011.7,4011.6,2.49277096]
[1760900572887,0.51834018,4011.7,4011.4,2.49287721]
[1760900572888,0.04444018,4011.7,4011.5,2.6485331]
[1760900573090,0.001,4011.7,4011.6,2.49277096]
[1760900577800,0.001,4011.7,4011.6,2.51769866]
[1760900578009,0.001,4011.7,4011.6,2.49277096]
[1760900579284,0.04443652,4011.7,4011.6,2.49277096]
[1760900579614,0.001,4011.7,4011.6,2.49277096]
[1760900584209,0.4749,4011.7,4011.6,2.49277096]
[1760900584415,0.124,4011.6,4011.4,2.49283324]
[1760900584715,0.4739,4011.5,4011.4,2.49283324]
[1760900586083,0.4739,4011.5,4011.3,0.002]
[1760900586084,0.4367,4011.5,4011.3,0.002]
[1760900588092,0.4367,4011.4,4011.3,0.002]
[1760900591306,0.75581,4011.7,4011.3,0.002]
[1760900591614,0.001,4011.7,4011.6,2.49277096]
[1760900591816,3.188,4011.7,4011.6,2.49277096]
[1760900592018,3.188,4011.7,4011.6,2.86317096]
[1760900592925,3.188,4011.7,4011.6,2.49277096]
[1760900596413,3.188,4011.7,4011.6,2.49277096]
[1760900600044,3.23143924,4011.7,4011.6,2.49277096]
[1760900601465,3.23143924,4011.7,4011.3,0.002]
[1760900601668,9.39779827,4011.6,4011.3,0.002]
[1760900601992,0.124,4011.4,4011.3,0.002]
[1760900602136,0.14258827,4011.4,4011.3,0.002]
[1760900602478,2.34178827,4011.4,4011.3,0.002]
[1760900602636,6.46958953,4011.4,4011.3,0.002]
[1760900603339,11.02856053,4011.4,4011.3,0.002]
[1760900604465,20.27036353,4011.4,4011.3,0.002]
[1760900605377,36.46958953,4011.4,4011.3,0.002]
[1760900606364,6.46958953,4011.4,4011.3,0.002]
[1760900606564,36.46958953,4011.4,4011.3,0.002]
[1760900607340,6.46958953,4011.4,4011.3,0.002]
[1760900607638,36.46958953,4011.4,4011.3,0.002]
[1760900608566,36.51305462,4011.4,4011.3,0.002]
[1760900608766,36.90418619,4011.4,4011.3,0.002]
[1760900610178,2.49320601,4010.9,4010.8,0.002]
[1760900610466,10.19322661,4010.9,4010.8,0.002]
[1760900610668,40.66442661,4010.9,4010.8,0.002]
[1760900610857,52.89538841,4010.9,4010.8,0.002]
[1760900611443,22.89538841,4010.9,4010.8,0.002]
[1760900611640,52.89538841,4010.9,4010.8,0.002]
[1760900612568,34.85505468,4010.5,4010.4,0.002]
[1760900612771,40.54416862,4010.5,4010.4,0.002]
[1760900612984,41.01536862,4010.5,4010.4,0.002]
[1760900613675,11.01536862,4010.5,4010.4,0.002]
[1760900613845,41.01536862,4010.5,4010.4,0.002]
[1760900615671,41.13707297,4010.5,4010.4,0.002]
[1760900616344,39.82933697,4010.5,4010.4,0.002]
[1760900616871,11.13707297,4010.5,4010.4,0.002]
[1760900617070,41.13707297,4010.5,4010.4,0.002]
[1760900617879,11.13707297,4010.5,4010.4,0.002]
[1760900618077,41.13707297,4010.5,4010.4,0.002]
[1760900619081,41.57176509,4010.5,4010.4,0.002]
[1760900620943,11.57176509,4010.5,4010.4,0.002]
[1760900621175,41.10056509,4010.5,4010.4,0.002]
[1760900621481,35.17350409,4010.5,4010.4,0.002]
[1760900621999,41.54776509,4010.5,4010.4,0.002]
[1760900622354,3.12786319,4009.2,4009.1,0.2148]
[1760900622579,27.22059546,4009.2,4009.1,0.2148]
[1760900622780,29.70912113,4009.2,4009.1,0.2148]
[1760900622975,30.1438306,4009.2,4009.1,0.2148]
[1760900623176,30.3648706,4009.2,4009.1,0.2148]
[1760900623375,25.5778786,4009.2,4009.1,0.5852]
[1760900623566,23.07076466,4009.2,4009.1,0.5852]
[1760900623969,16.28068766,4009.2,4009.1,0.5852]
[1760900624153,17.24241966,4009.2,4009.1,0.5852]
[1760900624558,17.24241966,4009.2,4009.1,0.2148]
[1760900624759,17.24241966,4009.2,4009.1,0.5852]
[1760900625174,23.05573467,4009.2,4009.1,0.5852]
[1760900625374,23.01191661,4009.2,4009.1,0.2148]
[1760900625791,5.93183348,4009.2,4009.1,0.2148]
[1760900625960,5.93183348,4009.2,4009.1,0.5852]
[1760900626161,8.03486319,4009.2,4009.1,0.5852]
[1760900627379,8.03486319,4009.2,4009.1,0.2148]
[1760900627780,8.03486319,4009.2,4008.6,0.3704]
[1760900627781,2.3616,4008.9,4008.6,0.3704]
[1760900627971,3.177,4008.8,4008.6,0.3704]
[1760900628288,3.8106,4008.8,4008.7,0.3704]
[1760900628698,6.222486,4008.8,4008.7,0.3704]
[1760900629066,3.8106,4008.8,4008.7,0.3704]
[1760900630778,6.222586,4008.8,4008.7,0.3704]
[1760900631668,7.34372441,4008.8,4008.7,0.3704]
[1760900632095,3.169586,4008.7,4008.6,0.002]
[1760900632288,0.7576,4008.7,4008.6,0.002]
[1760900632690,0.80107615,4008.7,4008.6,0.3724]
[1760900633401,0.16747615,4008.7,4008.6,0.3724]
[1760900636484,0.16747615,4008.7,4008.6,6.75662659]
[1760900636810,0.04347615,4008.7,4008.6,2.86703653]
[1760900637778,3.177,4008.8,4008.7,2.4945743]
[1760900638110,3.301,4008.8,4008.7,2.8649743]
[1760900638805,3.301,4008.8,4008.7,6.75456436]
[1760900640813,3.301,4008.8,4008.7,2.8649743]
[1760900641016,3.301,4008.8,4008.6,0.002]
[1760900641395,3.301,4008.8,4008.6,2.49658322]
[1760900641598,3.301,4008.8,4008.7,2.4945743]
[1760900641810,3.301,4008.8,4008.6,2.86702289]
[1760900642691,3.301,4008.8,4008.7,2.4945743]
[1760900643719,3.301,4008.8,4008.6,0.002]
[1760900649197,3.7517,4008.8,4008.6,0.002]
[1760900649498,0.46928827,4008.7,4008.6,0.002]
[1760900650536,1.73417146,4008.7,4008.6,0.002]
[1760900653801,3.301,4008.8,4008.6,0.002]
[1760900654517,3.34447398,4008.8,4008.6,0.002]
[1760900654839,3.301,4008.8,4008.6,0.002]
[1760900655417,3.752,4008.8,4008.6,0.002]
[1760900656020,0.451,4008.7,4008.6,0.002]
[1760900657733,0.49447413,4008.7,4008.6,0.002]
[1760900658133,0.451,4008.7,4008.6,0.002]
[1760900658826,3.301,4008.8,4008.6,0.002]
[1760900659242,3.752,4008.8,4008.6,0.002]
[1760900659842,0.39125076,4009.1,4008.7,0.3704]
[1760900660071,3.169,4009.0,4008.8,2.49450858]
[1760900660212,2.49382908,4009.9,4008.6,0.002]
[1760900660213,3.17,4008.9,4008.6,2.49662557]
[1760900660568,3.17,4008.9,4008.8,2.49451207]
[1760900664113,3.621,4008.9,4008.6,0.002]
[1760900664319,0.768,4008.8,4008.6,0.002]
[1760900664722,3.88959006,4008.7,4008.6,0.002]
[1760900664920,39.19676436,4008.7,4008.6,0.002]
[1760900665147,39.19676436,4008.7,4008.1,0.002]
[1760900665148,3.12848548,4008.2,4008.1,0.002]
[1760900665470,42.22892409,4008.2,4008.1,0.002]
[1760900665663,42.67992409,4008.2,4008.1,0.002]
[1760900666540,36.29544855,4008.2,4008.1,0.002]
[1760900666727,38.79033403,4008.2,4008.1,0.002]
[1760900666932,37.06233403,4008.2,4008.1,0.002]
[1760900667954,37.10582299,4008.2,4008.1,0.002]
[1760900668737,37.49719817,4008.2,4008.1,0.002]
[1760900669544,39.22519817,4008.2,4008.1,0.002]
[1760900669745,36.27931269,4008.2,4008.1,0.002]
[1760900669945,9.22519817,4008.2,4008.1,0.002]
[1760900670149,39.22519817,4008.2,4008.1,0.002]
[1760900672864,43.89677344,4008.2,4008.1,0.002]
[1760900673266,13.89677344,4008.2,4008.1,0.002]
[1760900673439,43.89677344,4008.2,4008.1,0.002]
[1760900676480,13.89677344,4008.2,4008.1,0.002]
[1760900676648,43.89677344,4008.2,4008.1,0.002]
[1760900678593,13.89677344,4008.2,4008.1,0.002]
[1760900678887,43.89677344,4008.2,4008.1,0.002]
[1760900681868,43.50539826,4008.2,4008.1,0.002]
[1760900682789,13.50539826,4008.2,4008.1,0.002]
[1760900682949,43.50539826,4008.2,4008.1,0.002]
[1760900684786,13.50539826,4008.2,4008.1,0.002]
[1760900684984,43.50539826,4008.2,4008.1,0.002]
[1760900685489,43.6054822,4008.2,4008.1,0.002]
[1760900685688,43.1544822,4008.2,4008.1,0.002]
[1760900685889,38.38282299,4008.2,4008.1,0.002]
[1760900688961,8.38282299,4008.2,4008.1,0.002]
[1760900689159,39.22901308,4008.2,4008.1,0.002]
[1760900690898,38.77421308,4008.2,4008.1,0.002]
[1760900691058,10.46121308,4008.2,4008.1,0.002]
[1760900691257,40.46121308,4008.2,4008.1,0.002]
[1760900692603,37.65347905,4008.2,4008.1,0.002]
[1760900692907,37.01987905,4008.2,4008.1,0.3744]
[1760900693074,39.75697444,4008.2,4008.1,0.002]
[1760900693270,40.21177444,4008.2,4008.1,0.002]
[1760900693563,40.16828548,4008.2,4008.1,0.002]
[1760900693791,42.67539942,4008.2,4008.1,0.002]
[1760900693992,42.22059942,4008.2,4008.1,0.002]
[1760900694195,12.22059942,4008.2,4008.1,0.002]
[1760900694401,42.22059942,4008.2,4008.1,0.002]
[1760900694699,42.61196937,4008.2,4008.1,0.002]
[1760900695300,12.61196937,4008.2,4008.1,0.002]
[1760900695538,43.06676937,4008.2,4008.1,0.002]
[1760900696184,42.65546029,4008.2,4008.1,0.002]
[1760900696385,12.65546029,4008.2,4008.1,0.002]
[1760900696590,43.11026029,4008.2,4008.1,0.002]
[1760900697386,43.06676937,4008.2,4008.1,0.002]